fUSD/lending_fUSD_20250413
["ID","MTS","AMOUNT","RATE_DAILY","PERIOD"]
[357889864,1744513273911,-500.0,0.00019178,2]
[357889865,1744513273936,-500.0,0.00019178,2]
[357889866,1744513273961,-500.0,0.00019178,2]
[357889867,1744513273987,-500.0,0.00019178,2]
[357889868,1744513274011,-500.0,0.00019178,2]
[357889869,1744513274035,-500.0,0.00019178,2]
[357889870,1744513274059,-500.0,0.00019178,2]
[357889871,1744513274084,-500.0,0.00019178,2]
[357889872,1744513274111,-500.0,0.00019178,2]
[357889873,1744513274136,-500.0,0.00019178,2]
[357889874,1744513274160,-500.0,0.00019178,2]
[357889875,1744513274183,-500.0,0.00019178,2]
[357889876,1744513274208,-500.0,0.00019178,2]
[357889877,1744513274235,-500.0,0.00019178,2]
[357889878,1744513274260,-500.0,0.00019178,2]
[357889879,1744513274286,-500.0,0.00019178,2]
[357889880,1744513274311,-500.0,0.00019178,2]
[357889881,1744513274335,-198.0116463,0.00019178,2]
[357889882,1744513274360,-500.0,0.00019178,2]
[357889883,1744513274386,-500.0,0.00019178,2]
[357889884,1744513274412,-500.0,0.00019178,2]
[357889885,1744513274436,-500.0,0.00019178,2]
[357889886,1744513274461,-500.0,0.00019178,2]
[357889887,1744513274487,-500.0,0.00019178,2]
[357889888,1744513274513,-554.78597452,0.00019178,2]
[357889889,1744513274538,-532.04822372,0.00019178,2]
[357889890,1744513274562,-500.0,0.00019178,2]
[357889891,1744513274586,-500.0,0.00019178,2]
[357889892,1744513274612,-500.0,0.00019178,2]
[357889893,1744513274636,-500.0,0.00019178,2]
[357889894,1744513274660,-500.0,0.00019178,2]
[357889895,1744513274686,-500.0,0.00019178,2]
[357889896,1744513274710,-500.0,0.00019178,2]
[357889897,1744513274736,-500.0,0.00019178,2]
[357889898,1744513274761,-500.0,0.00019178,2]
[357889899,1744513274787,-356.14964183,0.00019178,2]
[357889900,1744513274814,-500.0,0.00019178,2]
[357889901,1744513274838,-500.0,0.00019178,2]
[357889902,1744513274866,-500.0,0.00019178,2]
[357889903,1744513274893,-500.0,0.00019178,2]
[357889904,1744513274918,-500.0,0.00019178,2]
[357889905,1744513274943,-500.0,0.00019178,2]
[357889906,1744513274967,-500.0,0.00019178,2]
[357889907,1744513274991,-500.0,0.00019178,2]
[357889908,1744513275014,-500.0,0.00019178,2]
[357889909,1744513275039,-500.0,0.00019178,2]
[357889910,1744513275063,-3186.61,0.00019178,2]
[357889911,1744513275087,-500.0,0.00019178,2]
[357889912,1744513275112,-500.0,0.00019178,2]
[357889913,1744513275137,-500.0,0.00019178,2]
[357889914,1744513275162,-500.0,0.00019178,2]
[357889915,1744513275186,-500.0,0.00019178,2]
[357889916,1744513275401,-646.48,0.00019178,2]
[357889917,1744513275428,-500.0,0.00019178,2]
[357889918,1744513275452,-519.26799572,0.00019178,2]
[357889919,1744513275477,-1538.36,0.00019178,2]
[357889920,1744513275506,-500.0,0.00019178,2]
[357889921,1744513275531,-500.0,0.00019178,2]
[357889922,1744513275558,-500.0,0.00019178,2]
[357889923,1744513275581,-361.81128251,0.00019178,2]
[357889924,1744513275607,-500.0,0.00019178,2]
[357889925,1744513275632,-507.8,0.00019178,2]
[357889926,1744513275657,-500.0,0.00019178,2]
[357889927,1744513275687,-500.0,0.00019178,2]
[357889928,1744513275713,-500.0,0.00019178,2]
[357889929,1744513275739,-559.81,0.00019178,2]
[357889930,1744513275763,-603.1,0.00019178,2]
[357889931,1744513275789,-500.0,0.00019178,2]
[357889932,1744513275815,-500.0,0.00019178,2]
[357889933,1744513275840,-500.0,0.00019178,2]
[357889934,1744513275867,-500.0,0.00019178,2]
[357889935,1744513275893,-500.0,0.00019178,2]
[357889936,1744513275919,-500.0,0.00019178,2]
[357889937,1744513275945,-500.0,0.00019178,2]
[357889938,1744513275969,-500.0,0.00019178,2]
[357889939,1744513275994,-500.0,0.00019178,2]
[357889940,1744513276018,-500.0,0.00019178,2]
[357889941,1744513276043,-500.0,0.00019178,2]
[357889942,1744513276068,-500.0,0.00019178,2]
[357889943,1744513276094,-500.0,0.00019178,2]
[357889944,1744513276119,-500.0,0.00019178,2]
[357889945,1744513276144,-500.0,0.00019178,2]
[357889946,1744513276168,-500.0,0.00019178,2]
[357889947,1744513276194,-500.0,0.00019178,2]
[357889948,1744513276220,-500.0,0.00019178,2]
[357889949,1744513276244,-500.0,0.00019178,2]
[357889950,1744513276268,-500.0,0.00019178,2]
[357889951,1744513276294,-500.0,0.00019178,2]
[357889952,1744513276317,-3851.06,0.00019178,2]
[357889953,1744513276342,-500.0,0.00019178,2]
[357889954,1744513276366,-5021.25,0.00019178,2]
[357889955,1744513276390,-500.0,0.00019178,2]
[357889956,1744513276414,-500.0,0.00019178,2]
[357889957,1744513276438,-500.0,0.00019178,2]
[357889958,1744513276462,-500.0,0.00019178,2]
[357889959,1744513276488,-500.0,0.00019178,2]
[357889960,1744513276512,-500.0,0.00019178,2]
[357889961,1744513276536,-500.0,0.00019178,2]
[357889962,1744513276560,-780.03,0.00019178,2]
[357889963,1744513276584,-500.0,0.00019178,2]
[357889964,1744513276609,-500.0,0.00019178,2]
[357889965,1744513276633,-534.0,0.00019178,2]
[357889966,1744513276656,-1944.0,0.00019178,2]
[357889967,1744513276681,-500.0,0.00019178,2]
[357889968,1744513276706,-500.0,0.00019178,2]
[357889969,1744513276730,-500.0,0.00019178,2]
[357889970,1744513276755,-150.0,0.00019178,2]
[357889971,1744513276782,-500.0,0.00019178,2]
[357889972,1744513276807,-151.74610551,0.00019178,2]
[357889973,1744513276834,-633.79063105,0.00019178,2]
[357889974,1744513276861,-500.0,0.00019178,2]
[357889975,1744513276887,-858.01,0.00019178,2]
[357889976,1744513276914,-500.0,0.00019178,2]
[357889977,1744513276938,-500.0,0.00019178,2]
[357889978,1744513276963,-500.0,0.00019178,2]
[357889979,1744513276989,-500.0,0.00019178,2]
[357889980,1744513277015,-500.0,0.00019178,2]
[357889981,1744513277040,-500.0,0.00019178,2]
[357889982,1744513277065,-500.0,0.00019178,2]
[357889983,1744513277090,-500.0,0.00019178,2]
[357889984,1744513277115,-500.0,0.00019178,2]
[357889985,1744513277140,-500.0,0.00019178,2]
[357889986,1744513277164,-500.0,0.00019178,2]
[357889987,1744513277188,-500.0,0.00019178,2]
[357889988,1744513277212,-500.0,0.00019178,2]
[357889989,1744513277235,-500.0,0.00019178,2]
[357889990,1744513277258,-500.0,0.00019178,2]
[357889991,1744513277282,-500.0,0.00019178,2]
[357889992,1744513277304,-235.73779066,0.00019178,2]
[357889993,1744513277330,-500.0,0.00019178,2]
[357889994,1744513277354,-500.0,0.00019178,2]
[357889995,1744513277377,-500.0,0.00019178,2]
[357889996,1744513277403,-612.41,0.00019178,2]
[357889997,1744513277427,-500.0,0.00019178,2]
[357889998,1744513277451,-500.0,0.00019178,2]
[357889999,1744513277476,-1572.03,0.00019178,2]
[357890000,1744513277501,-500.0,0.00019178,2]
[357890001,1744513277525,-539.83371773,0.00019178,2]
[357890002,1744513277548,-500.0,0.00019178,2]
[357890003,1744513277572,-500.0,0.00019178,2]
[357890004,1744513277595,-33789.32,0.00019178,2]
[357890005,1744513277619,-539.00954772,0.00019178,2]
[357890006,1744513277644,-500.0,0.00019178,2]
[357890007,1744513277668,-500.0,0.00019178,2]
[357890008,1744513277692,-500.0,0.00019178,2]
[357890009,1744513277716,-500.0,0.00019178,2]
[357890010,1744513277741,-500.0,0.00019178,2]
[357890011,1744513277765,-253.38258499,0.00019178,2]
[357890012,1744513277789,-500.0,0.00019178,2]
[357890013,1744513277814,-500.0,0.00019178,2]
[357890014,1744513277839,-500.0,0.00019178,2]
[357890015,1744513277864,-500.0,0.00019178,2]
[357890016,1744513277891,-677.46,0.00019178,2]
[357890017,1744513277916,-500.0,0.00019178,2]
[357890018,1744513277944,-500.0,0.00019178,2]
[357890019,1744513277969,-500.0,0.00019178,2]
[357890020,1744513277995,-1385.43,0.00019178,2]
[357890021,1744513278021,-500.0,0.00019178,2]
[357890022,1744513278044,-242.73272559,0.00019178,2]
[357890023,1744513278068,-500.0,0.00019178,2]
[357890024,1744513278093,-500.0,0.00019178,2]
[357890025,1744513278119,-500.0,0.00019178,2]
[357890026,1744513278144,-500.0,0.00019178,2]
[357890027,1744513278170,-500.0,0.00019178,2]
[357890028,1744513278197,-1753.98,0.00019178,2]
[357890029,1744513278223,-500.0,0.00019178,2]
[357890030,1744513278252,-549.45,0.00019178,2]
[357890031,1744513278278,-1022.54,0.00019178,2]
[357890032,1744513278303,-879.52,0.00019178,2]
[357890033,1744513280513,500.0,0.00019178,2]
[357890034,1744513282323,510.48272605,0.00019178,2]
[357890035,1744513286094,500.0,0.00019178,2]
[357890036,1744513288263,500.0,0.00019178,2]
[357890037,1744513289944,500.0,0.00019178,2]
[357890038,1744513290789,500.0,0.00019178,2]
[357890039,1744513291127,2000.0,0.00018813,2]
[357890040,1744513294315,528.2486471,0.00019178,2]
[357890041,1744513296211,500.0,0.00019178,2]
[357890042,1744513298749,500.0,0.00019178,2]
[357890043,1744513301779,500.0,0.00019178,2]
[357890044,1744513304380,378.58562134,0.00019178,2]
[357890045,1744513306112,500.0,0.00019178,2]
[357890046,1744513306712,500.0,0.00019178,2]
[357890047,1744513306745,174.54659633,0.00019178,2]
[357890048,1744513306867,2257.18,0.00019178,2]
[357890049,1744513308520,500.0,0.00019178,2]
[357890050,1744513316078,536.49,0.00019178,2]
[357890051,1744513319717,500.0,0.00019178,2]
[357890052,1744513321692,619.54,0.00019178,2]
[357890053,1744513329328,500.0,0.00019178,2]
[357890054,1744513330249,1474.26,0.00019178,2]
[357890055,1744513333773,500.0,0.00019178,2]
[357890056,1744513334258,500.0,0.00019178,2]
[357890057,1744513335492,500.0,0.00019178,2]
[357890058,1744513336866,500.0,0.00019178,2]
[357890059,1744513337645,500.0,0.00019178,2]
[357890060,1744513340742,500.0,0.00019178,2]
[357890061,1744513342901,529.93262804,0.00019178,2]
[357890062,1744513343084,500.0,0.00019178,2]
[357890063,1744513344717,500.0,0.00019178,2]
[357890064,1744513346910,577.97,0.00019178,2]
[357890065,1744513351895,500.0,0.00019178,2]
[357890066,1744513354622,500.0,0.00019178,2]
[357890067,1744513357366,162.21049874,0.00019178,2]
[357890068,1744513359573,565.73232558,0.00019178,2]
[357890069,1744513359620,500.0,0.00019178,2]
[357890070,1744513360907,500.0,0.00019178,2]
[357890071,1744513363231,500.0,0.00019178,2]
[357890072,1744513369792,500.0,0.00019178,2]
[357890073,1744513375846,500.0,0.00019178,2]
[357890074,1744513377010,500.0,0.00019178,2]
[357890075,1744513377155,500.0,0.00019178,2]
[357890076,1744513378145,500.0,0.00019178,2]
[357890077,1744513384025,328.37177148,0.00019178,2]
[357890078,1744513385515,3690.6,0.00019178,2]
[357890079,1744513385624,500.0,0.00019178,2]
[357890080,1744513386041,500.0,0.00019178,2]
[357890081,1744513386297,747.53,0.00019178,2]
[357890082,1744513395423,500.0,0.00019178,2]
[357890083,1744513397400,500.0,0.00019178,2]
[357890084,1744513400716,4393.59,0.00019178,2]
[357890085,1744513401121,500.0,0.00019178,2]
[357890086,1744513401686,312.673953,0.00019178,2]
[357890087,1744513409412,822.26,0.00019178,2]
[357890088,1744513409843,500.0,0.00019178,2]
[357890089,1744513411377,500.0,0.00019178,2]
[357890090,1744513417764,580.37241549,0.00019178,2]
[357890091,1744513419817,500.0,0.00019178,2]
[357890092,1744513420103,504.88832499,0.00019178,2]
[357890093,1744513420836,500.0,0.00019178,2]
[357890094,1744513423232,522.68189938,0.00019178,2]
[357890095,1744513424769,242.285754,0.0001917,2]
[357890096,1744513425991,419.40032968,0.00019178,2]
[357890097,1744513441442,201.04,0.00014924,2]
[357890098,1744513477056,190.0,0.0002,3]
[357890099,1744513514284,-619.48,0.00018655,2]
[357890100,1744513514310,-239.89889,0.0001917,2]
[357890101,1744513514336,-300.0,0.00019177,2]
[357890102,1744513514360,-80.59967032,0.00019178,2]
[357890103,1744513514385,-516.96592453,0.00019178,2]
[357890104,1744513514410,-500.0,0.00019178,2]
[357890105,1744513514434,-182.44516588,0.00019178,2]
[357890106,1744513514459,-500.0,0.00019178,2]
[357890107,1744513514483,-500.0,0.00019178,2]
[357890108,1744513514509,-500.0,0.00019178,2]
[357890109,1744513514533,-1506.53,0.00019178,2]
[357890110,1744513514557,-575.05615031,0.00019178,2]
[357890111,1744513514582,-500.0,0.00019178,2]
[357890112,1744513514607,-500.0,0.00019178,2]
[357890113,1744513514631,-514.6428671,0.00019178,2]
[357890114,1744513514660,-500.0,0.00019178,2]
[357890115,1744513514685,-520.89893853,0.00019178,2]
[357890116,1744513514711,-500.0,0.00019178,2]
[357890117,1744513514735,-500.0,0.00019178,2]
[357890118,1744513514760,-500.0,0.00019178,2]
[357890119,1744513514786,-500.0,0.00019178,2]
[357890120,1744513514811,-500.0,0.00019178,2]
[357890121,1744513514837,-500.0,0.00019178,2]
[357890122,1744513514862,-500.0,0.00019178,2]
[357890123,1744513514889,-464.16926183,0.00019178,2]
[357890124,1744513514915,-500.0,0.00019178,2]
[357890125,1744513514942,-1680.9,0.00019178,2]
[357890126,1744513514967,-586.9,0.00019178,2]
[357890127,1744513514991,-500.0,0.00019178,2]
[357890128,1744513515017,-500.0,0.00019178,2]
[357890129,1744513515045,-526.56,0.00019178,2]
[357890130,1744513515071,-842.88,0.00019178,2]
[357890131,1744513515096,-32381.43,0.00019178,2]
[357890132,1744513515122,-537.43087881,0.00019178,2]
[357890133,1744513515148,-500.0,0.00019178,2]
[357890134,1744513515172,-457.65510677,0.00019178,2]
[357890135,1744513515197,-581.7901897,0.00019178,2]
[357890136,1744513515223,-500.0,0.00019178,2]
[357890137,1744513515249,-649.23,0.00019178,2]
[357890138,1744513515273,-500.0,0.00019178,2]
[357890139,1744513515298,-500.0,0.00019178,2]
[357890140,1744513515323,-1327.7,0.00019178,2]
[357890141,1744513515346,-500.0,0.00019178,2]
[357890142,1744513515370,-500.0,0.00019178,2]
[357890143,1744513515396,-500.0,0.00019178,2]
[357890144,1744513515421,-1360.95,0.00019178,2]
[357890145,1744513515448,-500.0,0.00019178,2]
[357890146,1744513515473,-500.0,0.00019178,2]
[357890147,1744513515498,-500.0,0.00019178,2]
[357890148,1744513515525,-45.88695622,0.00019178,2]
[357890150,1744513688267,-190.4,0.000191,2]
[357890151,1744513688293,-300.0,0.00019177,2]
[357890152,1744513688318,-454.11304378,0.00019178,2]
[357890153,1744513688343,-500.0,0.00019178,2]
[357890154,1744513688368,-500.0,0.00019178,2]
[357890155,1744513688393,-500.0,0.00019178,2]
[357890156,1744513688418,-500.0,0.00019178,2]
[357890157,1744513688443,-500.0,0.00019178,2]
[357890158,1744513688473,-514.13,0.00019178,2]
[357890159,1744513688499,-500.0,0.00019178,2]
[357890160,1744513688523,-500.0,0.00019178,2]
[357890161,1744513688548,-500.0,0.00019178,2]
[357890162,1744513688576,-500.0,0.00019178,2]
[357890163,1744513688600,-500.0,0.00019178,2]
[357890164,1744513688625,-500.0,0.00019178,2]
[357890165,1744513688650,-979.93,0.00019178,2]
[357890166,1744513688674,-500.0,0.00019178,2]
[357890167,1744513688698,-500.0,0.00019178,2]
[357890168,1744513688723,-510.43687493,0.00019178,2]
[357890169,1744513688748,-645.33946702,0.00019178,2]
[357890170,1744513688773,-500.0,0.00019178,2]
[357890171,1744513688798,-593.73,0.00019178,2]
[357890172,1744513688823,-500.0,0.00019178,2]
[357890173,1744513688848,-589.69734044,0.00019178,2]
[357890174,1744513688873,-500.0,0.00019178,2]
[357890175,1744513688898,-1412.83,0.00019178,2]
[357890176,1744513688923,-500.0,0.00019178,2]
[357890177,1744513688950,-500.0,0.00019178,2]
[357890178,1744513688976,-500.0,0.00019178,2]
[357890179,1744513689002,-500.0,0.00019178,2]
[357890180,1744513689028,-500.0,0.00019178,2]
[357890181,1744513689053,-553.89,0.00019178,2]
[357890182,1744513689080,-500.0,0.00019178,2]
[357890183,1744513689341,-716.38,0.00019178,2]
[357890184,1744513689371,-500.0,0.00019178,2]
[357890185,1744513689396,-500.0,0.00019178,2]
[357890186,1744513689422,-500.0,0.00019178,2]
[357890187,1744513689446,-500.0,0.00019178,2]
[357890188,1744513689472,-500.0,0.00019178,2]
[357890189,1744513689496,-3536.83,0.00019178,2]
[357890190,1744513689522,-500.0,0.00019178,2]
[357890191,1744513689546,-500.0,0.00019178,2]
[357890192,1744513689570,-500.0,0.00019178,2]
[357890193,1744513689594,-4628.97,0.00019178,2]
[357890194,1744513689619,-500.0,0.00019178,2]
[357890195,1744513689644,-500.0,0.00019178,2]
[357890196,1744513689669,-500.0,0.00019178,2]
[357890197,1744513689694,-500.0,0.00019178,2]
[357890198,1744513689718,-506.62222735,0.00019178,2]
[357890199,1744513689744,-788.0,0.00019178,2]
[357890200,1744513689771,-500.0,0.00019178,2]
[357890201,1744513689796,-500.0,0.00019178,2]
[357890202,1744513689827,-556.84276993,0.00019178,2]
[357890203,1744513689851,-500.0,0.00019178,2]
[357890204,1744513689878,-21.85827655,0.00019178,2]
[357890205,1744513699982,-478.14172345,0.00019178,2]
[357890206,1744513700009,-500.0,0.00019178,2]
[357890207,1744513700034,-31032.21,0.00019178,2]
[357890208,1744513700060,-1389.64827655,0.00019178,2]
[357890209,1744513762899,-300.0,0.00019177,2]
[357890210,1744513762926,-54.11172345,0.00019178,2]
[357890211,1744513762952,-622.18,0.00019178,2]
[357890212,1744513762980,-500.0,0.00019178,2]
[357890213,1744513763005,-500.0,0.00019178,2]
[357890214,1744513763032,-212.24737235,0.00019178,2]
[357890215,1744513763059,-500.0,0.00019178,2]
[357890216,1744513763083,-500.0,0.00019178,2]
[357890217,1744513763108,-552.83065259,0.00019178,2]
[357890218,1744513763135,-562.44,0.00019178,2]
[357890219,1744513763161,-500.0,0.00019178,2]
[357890220,1744513763187,-500.0,0.00019178,2]
[357890221,1744513763212,-500.0,0.00019178,2]
[357890222,1744513763236,-500.0,0.00019178,2]
[357890223,1744513763261,-500.0,0.00019178,2]
[357890224,1744513763287,-1610.86,0.00019178,2]
[357890225,1744513763312,-500.0,0.00019178,2]
[357890226,1744513763337,-500.0,0.00019178,2]
[357890227,1744513763361,-667.28,0.00019178,2]
[357890228,1744513763385,-500.0,0.00019178,2]
[357890229,1744513763411,-500.0,0.00019178,2]
[357890230,1744513763436,-1272.38,0.00019178,2]
[357890231,1744513763460,-500.0,0.00019178,2]
[357890232,1744513763486,-525.08822907,0.00019178,2]
[357890233,1744513763510,-500.0,0.00019178,2]
[357890234,1744513763534,-614.1241839,0.00019178,2]
[357890235,1744513763558,-504.62,0.00019178,2]
[357890236,1744513763582,-500.0,0.00019178,2]
[357890237,1744513763606,-568.99,0.00019178,2]
[357890238,1744513763630,-2903.08,0.00019178,2]
[357890239,1744513763654,-939.1,0.00019178,2]
[357890240,1744513765564,500.0,0.00019178,2]
[357890241,1744513766824,1353.97,0.00019178,2]
[357890242,1744513773560,500.0,0.00019178,2]
[357890243,1744513775257,500.0,0.00019178,2]
[357890244,1744513779292,500.0,0.00019178,2]
[357890245,1744513782458,500.0,0.00019178,2]
[357890246,1744513783143,530.81,0.00019178,2]
[357890247,1744513785716,500.0,0.00019178,2]
[357890248,1744513789497,374.67840838,0.00019178,2]
[357890249,1744513791372,500.0,0.00019178,2]
[357890250,1744513795790,500.0,0.00019178,2]
[357890251,1744513796338,500.0,0.00019178,2]
[357890252,1744513796370,500.0,0.00019178,2]
[357890253,1744513803321,500.0,0.00019178,2]
[357890254,1744513809682,500.0,0.00019178,2]
[357890255,1744513812179,500.0,0.00019178,2]
[357890256,1744513812867,500.0,0.00019178,2]
[357890257,1744513818514,519.35545626,0.00019178,2]
[357890258,1744513819156,500.0,0.00019178,2]
[357890259,1744513821317,3389.46,0.00019178,2]
[357890260,1744513822117,500.0,0.00019178,2]
[357890261,1744513827797,500.0,0.00019178,2]
[357890264,1744513831603,-176.36,0.00019306,2]
[357890265,1744513831613,-354.14668587,0.00019324,2]
[357890266,1744513831623,-19.44086383,0.00019352,2]
[357890268,1744513834436,500.0,0.00019178,2]
[357890269,1744513835703,4436.09,0.00019178,2]
[357890270,1744513836887,500.0,0.00019178,2]
[357890276,1744513837746,-2178.63483617,0.00019352,2]
[357890277,1744513837756,-635.9373428,0.00019399,2]
[357890278,1744513837766,-338.74,0.000194,2]
[357890279,1744513837775,-500.0,0.00019452,2]
[357890280,1744513837786,-500.0,0.00019452,2]
[357890281,1744513837796,-500.0,0.00019452,2]
[357890282,1744513837806,-598.87200638,0.00019452,2]
[357890283,1744513837815,-500.0,0.00019452,2]
[357890284,1744513837825,-500.0,0.00019452,2]
[357890285,1744513837834,-500.0,0.00019452,2]
[357890286,1744513837844,-500.0,0.00019452,2]
[357890287,1744513837853,-500.0,0.00019452,2]
[357890288,1744513837862,-500.0,0.00019452,2]
[357890289,1744513837871,-500.0,0.00019452,2]
[357890290,1744513837882,-500.0,0.00019452,2]
[357890291,1744513837891,-500.0,0.00019452,2]
[357890292,1744513837900,-500.0,0.00019452,2]
[357890293,1744513837909,-500.0,0.00019452,2]
[357890294,1744513837919,-150.0,0.00019452,2]
[357890295,1744513837928,-500.0,0.00019452,2]
[357890296,1744513837939,-500.0,0.00019452,2]
[357890297,1744513837949,-500.0,0.00019452,2]
[357890298,1744513837958,-617.51032778,0.00019452,2]
[357890299,1744513837967,-500.0,0.00019452,2]
[357890300,1744513837977,-579.63153766,0.00019452,2]
[357890301,1744513837986,-500.0,0.00019452,2]
[357890302,1744513837995,-500.0,0.00019452,2]
[357890303,1744513838009,-500.0,0.00019452,2]
[357890304,1744513838018,-500.0,0.00019452,2]
[357890305,1744513838027,-500.0,0.00019452,2]
[357890306,1744513838036,-500.0,0.00019452,2]
[357890307,1744513838051,-500.0,0.00019452,2]
[357890308,1744513838060,-500.0,0.00019452,2]
[357890309,1744513838069,-500.0,0.00019452,2]
[357890310,1744513838079,-500.0,0.00019452,2]
[357890311,1744513838088,-500.0,0.00019452,2]
[357890312,1744513838098,-500.0,0.00019452,2]
[357890313,1744513838107,-500.0,0.00019452,2]
[357890314,1744513838116,-500.0,0.00019452,2]
[357890315,1744513838125,-500.0,0.00019452,2]
[357890316,1744513838134,-500.0,0.00019452,2]
[357890317,1744513838143,-716.38,0.00019452,2]
[357890318,1744513838152,-500.0,0.00019452,2]
[357890319,1744513838161,-500.0,0.00019452,2]
[357890320,1744513838170,-500.0,0.00019452,2]
[357890321,1744513838179,-500.0,0.00019452,2]
[357890322,1744513838188,-500.0,0.00019452,2]
[357890323,1744513838197,-500.0,0.00019452,2]
[357890324,1744513838207,-500.0,0.00019452,2]
[357890325,1744513838215,-671.14943836,0.00019452,2]
[357890326,1744513838231,-116.85056164,0.00019452,2]
[357890327,1744513838241,-500.0,0.00019452,2]
[357890328,1744513838250,-500.0,0.00019452,2]
[357890329,1744513838259,-500.0,0.00019452,2]
[357890330,1744513838268,-337.00232555,0.00019452,2]
[357890331,1744513838277,-1062.56099898,0.00019452,2]
[357890332,1744513838296,-2920.0991605,0.00019452,2]
[357890333,1744513838308,-692.74999987,0.00019452,2]
[357890346,1744513839755,-26356.79984065,0.00019452,2]
[357890347,1744513839765,-1443.76,0.00019452,2]
[357890348,1744513839775,-150.0,0.00019452,2]
[357890349,1744513839785,-622.18,0.00019452,2]
[357890350,1744513839795,-500.0,0.00019452,2]
[357890351,1744513839805,-500.0,0.00019452,2]
[357890352,1744513839814,-500.0,0.00019452,2]
[357890353,1744513839824,-500.0,0.00019452,2]
[357890354,1744513839833,-562.44,0.00019452,2]
[357890355,1744513839843,-500.0,0.00019452,2]
[357890356,1744513839853,-500.0,0.00019452,2]
[357890357,1744513839863,-500.0,0.00019452,2]
[357890358,1744513839872,-500.0,0.00019452,2]
[357890359,1744513839882,-500.0,0.00019452,2]
[357890360,1744513839892,-1610.86,0.00019452,2]
[357890361,1744513839902,-403.30714318,0.00019452,2]
[357890362,1744513839912,-500.0,0.00019452,2]
[357890363,1744513839922,-667.28,0.00019452,2]
[357890364,1744513839932,-500.0,0.00019452,2]
[357890365,1744513839941,-1272.38,0.00019452,2]
[357890366,1744513839951,-500.0,0.00019452,2]
[357890367,1744513839960,-500.0,0.00019452,2]
[357890368,1744513839970,-504.62,0.00019452,2]
[357890369,1744513839980,-512.0,0.00019452,2]
[357890370,1744513839990,-500.0,0.00019452,2]
[357890371,1744513840006,-568.99,0.00019452,2]
[357890372,1744513840018,-2903.08,0.00019452,2]
[357890373,1744513840028,-1863.0,0.00019452,2]
[357890374,1744513840038,-939.1,0.00019452,2]
[357890375,1744513840049,-500.0,0.00019452,2]
[357890376,1744513840059,-150.0,0.00019452,2]
[357890377,1744513840069,-1353.97,0.00019452,2]
[357890378,1744513840080,-568.26443158,0.00019452,2]
[357890379,1744513840089,-500.0,0.00019452,2]
[357890380,1744513840100,-500.0,0.00019452,2]
[357890381,1744513840110,-500.0,0.00019452,2]
[357890382,1744513840120,-530.81,0.00019452,2]
[357890383,1744513840130,-500.0,0.00019452,2]
[357890384,1744513840140,-500.0,0.00019452,2]